Cogmind - Beta 15 @@@ ROGUE MODE // 2025.07.08 @ 21:23:42 Player: Dingot Result: Destroyed by WE-L2Q(R) with Subdweller Shrapnel Launcher Performance ------------- Evolutions (0) 0 Regions Visited (3) 600 Robots Destroyed (3) 15 Value Destroyed (57) 57 Prototype IDs (0) 0 Alien Tech Used (0) 0 Bonus (0) 0 TOTAL SCORE: 672 Bonus ------- None Cogmind --------- Core Integrity 0/250 Matter 275/300 Energy 100/100 System Corruption 0% Temperature Cool (9) Movement Core (150) Ox2 Location -10/Subcaves Parts ------- > --- POWER (1) -------- (None) > --- PROPULSION (2) --- (None) > --- UTILITY (2) ------ Small Storage Unit > --- WEAPON (2) ------- Assault Rifle > --- INVENTORY (8) ---- Scrap Suit Huge Storage Unit Peak State ------------ > --- POWER ------------ Light Ion Engine > --- PROPULSION ------- Light Treads Light Treads > --- UTILITY ---------- Small Storage Unit > --- WEAPON ----------- EM Pulse Gun Grenade Launcher > --- INVENTORY -------- Scrap Suit Huge Storage Unit Assault Rifle [Rating: 7] Favorites ----------- Power Light Ion Engine Engine Light Ion Engine Propulsion Light Treads Treads Light Treads Utility Small Storage Unit Storage Small Storage Unit Weapon EM Pulse Gun Energy Gun EM Pulse Gun Ballistic Gun Assault Rifle Launcher Grenade Launcher Build | -11 -10 -10 -10 ------- Run | Yrd Mat Min Sub Slots Evolved . | . . . . Power . | . . . . Propulsion . | . . . . Utility . | . . . . Weapon . | . . . . Parts Attached 7 | 6 1 . . Power 1 | 1 . . . Engine 1 | 1 . . . Core . | . . . . Reactor . | . . . . Propulsion 2 | 2 . . . Treads 2 | 2 . . . Leg . | . . . . Wheel . | . . . . Hover . | . . . . Flight . | . . . . Utility 1 | 1 . . . Device . | . . . . Storage 1 | 1 . . . Processor . | . . . . Hackware . | . . . . Protection . | . . . . Artifact . | . . . . Weapon 3 | 2 1 . . Energy Gun 1 | 1 . . . Energy Cannon . | . . . . Ballistic Gun 1 | 1 . . . Ballistic Cannon . | . . . . Launcher 1 | . 1 . . Special Weapon . | . . . . Impact Weapon . | . . . . Slashing Weapon . | . . . . Piercing Weapon . | . . . . Special Melee Weapon . | . . . . Unidentified Prototypes . | . . . . Parts Lost 5 | . . 5 . Power 1 | . . 1 . Propulsion 2 | . . 2 . Utility . | . . . . Weapon 2 | . . 2 . Highest Loss Streak 5 | . . 5 . To Critical Strikes . | . . . . Average Backups 2 | 2 . 2 2 Power . | . . . . Propulsion . | . . . . Utility 1 | . . 1 2 Weapon . | 1 . 1 . Tool/Special . | . . . . Unused Backups 2 | . . . 2 Power . | . . . . Propulsion . | . . . . Utility 2 | . . . 2 Weapon . | . . . . Tool/Special . | . . . . Average Slot Usage (%) 67 | . 85 82 15 Engine 10 | . 14 14 . Treads 21 | . 28 27 . Storage 14 | . 14 14 14 Energy Gun 10 | . 14 12 . Launcher 9 | . 11 13 . Peak Build Rating 7 | 6 6 7 2 Average Rating 5 | 2 6 6 2 On Entrance 3 | . 6 6 2 Naked Turns . | . . . . Heaviest Build 13 | 12 13 13 7 Greatest Support 40 | 40 40 40 3 Greatest Overweight (x) 2 | . . 2 2 Average Overweight (x) . | . . . 1 Largest Inventory Capacity 8 | 8 8 8 8 Average Capacity 7 | 5 8 8 8 Most Carried 5 | 5 1 4 4 Average Carried 3 | 2 . 3 3 Final Capacity 8 | 8 8 8 8 Final Carried 4 | . 1 4 3 Class Distribution -------------------- 100% | Mutant Dominant Class ---------------- Mutant | -10/Materials Mutant | -10/Mines Mutant | -10/Subcaves Resources | -11 -10 -10 -10 ----------- Run | Yrd Mat Min Sub Matter Collected 308 | 230 42 21 15 Remotely . | . . . . Salvage Created 70 | . 50 20 . Parts 4 | . 1 3 . Haulers Intercepted . | . . . . Recyclers Shooed . | . . . . Parts Field Recycled . | . . . . Retrieved Matter . | . . . . Parts Self-Destructed . | . . . . Prevented . | . . . . Kills | -11 -10 -10 -10 ------- Run | Yrd Mat Min Sub Combat Hostiles Destroyed 1 | . 1 . . AOE 1 | . 1 . . Classes Destroyed 3 | . 2 1 . Tunneler 1 | . . 1 . Operator 1 | . 1 . . Grunt 1 | . 1 . . Best Kill Streak 1 | . 1 1 . Combat Bots Only 1 | . 1 . . Max Kills in Single Turn 1 | . 1 1 . Gunslinging . | . . . . Exploded 1 | . 1 . . Melee . | . . . . Uniques/NPCs Destroyed . | . . . . Combat | -11 -10 -10 -10 -------- Run | Yrd Mat Min Sub Hostile Shots Fired 34 | . 2 21 11 Missed 8 | . 1 2 5 Hits 26 | . 1 19 6 Projectile 26 | . 1 19 6 AOE 18 | . . 16 2 Damage Taken 867 | . 10 652 205 Core 302 | . . 216 86 Absorbed by Shields . | . . . . Core Remaining (%) 100 | 100 . . . Volleys Fired 17 | 2 5 5 5 Largest 2 | 2 2 2 1 Hottest 70 | 60 70 70 20 Shots Fired 22 | 4 6 7 5 Gun 16 | 4 5 2 5 Cannon . | . . . . Launcher 6 | . 1 5 . Special . | . . . . Kinetic 7 | 2 . . 5 Thermal . | . . . . Explosive 6 | . 1 5 . Electromagnetic 9 | 2 5 2 . Robot Hit Streak 8 | 2 5 3 8 Robot Miss Streak 2 | . 2 . . Penetration Max . | . . . . Secondary Targets . | . . . . Shots Hit Robots 13 | 2 4 2 5 Core Hits 8 | . 2 5 1 Critical Kills . | . . . . Critical Parts Destroyed . | . . . . Critical Strikes . | . . . . Melee Attacks . | . . . . Impact . | . . . . Slashing . | . . . . Piercing . | . . . . Sneak Attacks . | . . . . Combat Hostiles . | . . . . Follow-up Attacks . | . . . . Damage Inflicted 266 | 38 113 57 58 Guns 145 | 38 37 12 58 Cannons . | . . . . Explosions 116 | . 71 45 . Melee . | . . . . Ramming 5 | . 5 . . Kinetic 68 | 10 . . 58 Thermal 26 | . 26 . . Explosive 90 | . 45 45 . Electromagnetic 77 | 28 37 12 . Impact . | . . . . Slashing . | . . . . Piercing . | . . . . Highest Corruption . | . . . . Average Corruption . | . . . . Corruption Purged . | . . . . Corruption Blocked . | . . . . Overload Shots . | . . . . Overflow Damage . | . . . . Projectiles . | . . . . Explosions . | . . . . Melee . | . . . . Knockbacks . | . . . . Impact . | . . . . Kinetic . | . . . . Secondary . | . . . . Self-Inflicted Damage 11 | . . 11 . Shots 1 | . . 1 . Rammed 1 | . 1 . . Targets Rammed 1 | . 1 . . Kicked . | . . . . Crushed . | . . . . Highest Temperature 9 | . 9 9 . Average Temperature 5 | . 6 5 . Received Heat Transfer 36 | . 6 . 30 Siege Activations . | . . . . Martial Activations . | . . . . Shielding Activations . | . . . . Robots Disrupted . | . . . . Combat Hostiles . | . . . . Robots Corrupted . | . . . . Combat Hostiles . | . . . . Parts Fried . | . . . . Impact Corruptions . | . . . . Robots Melted . | . . . . Combat Hostiles . | . . . . Parts Melted . | . . . . Heat Transferred 50 | . 50 . . Parts Sabotaged . | . . . . Parts Stolen . | . . . . Parts Stripped . | . . . . Power Chain Reactions 1 | . 1 . . Alert | -11 -10 -10 -10 ------- Run | Yrd Mat Min Sub Maximum Alert Level . | . . . . Low Security (%) 100 | 100 100 100 . Level 1 . | . . . . Level 2 . | . . . . Level 3 . | . . . . Level 4 . | . . . . Level 5 . | . . . . High Security . | . . . . Max Security . | . . . . Peak Influence 30 | . 30 10 . Initial . | . . . . Average 2 | . 10 . . Influence Increases 72 | . 48 24 . Destroy 0b10 Robot/C 20 | . 20 . . Destroy 0b10 Robot/NC 10 | . 5 5 . Destroy Leader 10 | . 10 . . Destroy Structure 32 | . 13 19 . Influence Decreases 72 | . 48 24 . Time Decay 55 | . 48 7 . Lost Part 17 | . . 17 . Squads Dispatched 1 | . 1 . . Investigation 1 | . 1 . . Extermination . | . . . . Reinforcement . | . . . . Assault . | . . . . Garrison . | . . . . Intercept . | . . . . Searches Triggered . | . . . . Construction Impeded . | . . . . Haulers Reinforced . | . . . . Active Scanning Responses . | . . . . Cargo Convoy Interrupts . | . . . . Stealth | -11 -10 -10 -10 --------- Run | Yrd Mat Min Sub Distress Signals . | . . . . Communications Jammed . | . . . . Distress Signals . | . . . . Times Spotted 18 | . 5 7 6 Peak Tracking Total 4 | . 1 3 4 Tactical Retreats 1 | . . . 1 Traps | -11 -10 -10 -10 ------- Run | Yrd Mat Min Sub Traps Triggered . | . . . . Indirectly . | . . . . Trap Hack Attempts . | . . . . Triggered . | . . . . Disarmed 1 | . 1 . . Reprogrammed . | . . . . Reused . | . . . . Traps Extracted . | . . . . Installed . | . . . . Triggered . | . . . . Machines | -11 -10 -10 -10 ---------- Run | Yrd Mat Min Sub Machines Disabled . | . . . . Max in Single Turn . | . . . . Machines Repaired . | . . . . Machines Dismantled . | . . . . Machines Sabotaged . | . . . . Overloaded Fab Kills . | . . . . Hacking | -11 -10 -10 -10 --------- Run | Yrd Mat Min Sub Machines Accessed 2 | . 2 . . Terminals 2 | . 2 . . Fabricators . | . . . . Repair Stations . | . . . . Recycling Units . | . . . . Scanalyzers . | . . . . Garrison Access . | . . . . Total Hacks 4 | . 4 . . Successful 1 | . 1 . . Failed 3 | . 3 . . Catastrophic . | . . . . Database Lockouts . | . . . . Manual 5 | . 5 . . Terminals 4 | . 4 . . Fabricators . | . . . . Repair Stations . | . . . . Recycling Units . | . . . . Scanalyzers . | . . . . Garrison Access . | . . . . Terminal Hacks 1 | . 1 . . Disarm Traps 1 | . 1 . . Fabricator Hacks . | . . . . Repair Station Hacks . | . . . . Recycling Unit Hacks . | . . . . Scanalyzer . | . . . . Garrison Access Hacks . | . . . . Unauthorized Hacks . | . . . . Terminals . | . . . . Fabricators . | . . . . Repair Stations . | . . . . Recycling Units . | . . . . Scanalyzers . | . . . . Garrison Access . | . . . . Data Cores Recovered 1 | . 1 . . Used 1 | . 1 . . Hacking Detections 2 | . 2 . . Full Trace Events 2 | . 2 . . Feedback Events . | . . . . Feedback Blocked . | . . . . Robot Schematics Acquired . | . . . . Robots Built . | . . . . Authchips . | . . . . Time . | . . . . Total Robot Build Rating . | . . . . Part Schematics Acquired . | . . . . Parts Built . | . . . . Authchips . | . . . . Time . | . . . . Total Part Build Rating . | . . . . Parts Repaired . | . . . . Time . | . . . . Parts Recycled . | . . . . Recycled Matter . | . . . . Retrieved Matter . | . . . . Retrieved Components . | . . . . Parts Scanalyzed . | . . . . Part Schematics Acquired . | . . . . Parts Damaged . | . . . . Bothacking | -11 -10 -10 -10 ------------ Run | Yrd Mat Min Sub Used RIF Installer . | . . . . Robots Hacked . | . . . . Non-combat . | . . . . Combat . | . . . . Robot Hacks Applied . | . . . . Relay Couplers Released . | . . . . Fabnet Peak Effective % . | . . . . Robots Rewired . | . . . . Allies Hacked . | . . . . Hacks Repelled . | . . . . Allies | -11 -10 -10 -10 -------- Run | Yrd Mat Min Sub Total Allies 3 | . . 3 . Largest Group 3 | . . 3 . Highest-Rated Group 40 | . . 40 . Highest-Rated Ally 16 | . . 16 . Total Orders 1 | . . 1 . AID 1 | . . 1 . Ally Attacks 1 | . . 1 . Total Damage 13 | . . 13 . Kills . | . . . . Allies Corrupted . | . . . . Allies Melted . | . . . . Intel | -11 -10 -10 -10 ------- Run | Yrd Mat Min Sub Active Infowar (turns) . | . . . . Robot Analysis Total . | . . . . Derelict Logs Recovered 3 | . . 1 2 Drone Launches . | . . . . Drone Recoveries . | . . . . Exploration | -11 -10 -10 -10 ------------- Run | Yrd Mat Min Sub Turns Passed 897 | 41 142 511 203 Spaces Moved 610 | 41 80 311 178 Core 218 | 37 . 3 178 Treads 392 | 4 80 308 . Legs . | . . . . Wheels . | . . . . Hover . | . . . . Flight . | . . . . Fastest Speed 50 | 50 160 100 100 Average Speed 136 | 60 160 159 101 Slowest Speed 160 | 160 160 160 150 Overloaded Moves . | . . . . Propulsion Burnouts . | . . . . Robots Hopped . | . . . . Potential Cave-ins 2 | . . 2 . Cave-ins Triggered . | . . . . Exploration Rate (%) 28 | 3 19 68 25 Regions Visited 3 Branch Regions 2 Pre-discovered Areas . | . . . . Known Exits Taken . | . . . . Unknown Exits Taken 3 | 1 1 1 . Scrap Searched 1 | . . 1 . Spaces Dug . | . . . . Terrain Destroyed 40 | . 12 28 . Melee . | . . . . Projectile . | . . . . AOE 40 | . 12 28 . Terrain Rammed . | . . . . Walls Destroyed . | . . . . Machines Disabled . | . . . . Actions | -11 -10 -10 -10 --------- Run | Yrd Mat Min Sub Total 653 | 53 87 318 195 Wait 12 | . . 1 11 Move 607 | 40 79 310 178 Hop . | . . . . Pick Up 8 | 5 1 2 . Fast Attach 1 | 1 . . . Attach 6 | 5 . . 1 Detach . | . . . . Swap 1 | . 1 . . Drop . | . . . . Fire 17 | 2 5 5 5 Melee . | . . . . Ram . | . . . . Kick . | . . . . Crush 1 | . 1 . . Escape Stasis . | . . . . Rewire . | . . . . Trap . | . . . . Miscellaneous . | . . . . Route ------- -11/Scrapyard -10/Materials (discovered 2 exits: [*Min x2]) -10/Mines -10/Subcaves History --------- Turn | Location | Event 5 | -11/Scrapyard | Discovered new exit (range 15) 42 | -11/Scrapyard | Entered Materials 42 | -10/Materials | Discovered new exit (range 15) 141 | -10/Materials | Met 8R-AWN 147 | -10/Materials | Discovered new exit (range 15) 184 | -10/Materials | Entered Mines 185 | -10/Mines | Assembled infested the area 186 | -10/Mines | Followed 8R-AWN into the Mines 190 | -10/Mines | Assisted by a Guerilla fighting off Assembled 208 | -10/Mines | Found a Scrap Suit stashed away for nefarious purposes 211 | -10/Mines | Found Scrap Suit 301 | -10/Mines | Discovered new exit (range 8) 310 | -10/Mines | Build established: Mutant 386 | -10/Mines | Assisted by bots powering up and referring to "LRC-V3" 517 | -10/Mines | Learned Materials terminal intel 687 | -10/Mines | Core integrity fell below 50% 688 | -10/Mines | Lost 3 allies 695 | -10/Mines | Entered Subcaves 696 | -10/Subcaves | Approached by a straggling Scientist 696 | -10/Subcaves | Core integrity fell below 20% 726 | -10/Subcaves | Lost 5 parts (1p2n2w) 797 | -10/Subcaves | Learned Materials stockpile data 898 | -10/Subcaves | Destroyed by WE-L2Q(R) with Subdweller Shrapnel Launcher Last Messages --------------- AMBIENT_HEAT=-10 GOAL=ESCAPE Acquired derelict log, extracted data. Data stored: Mines entrances (x2). 27-EHY(c): "Thank the algorithms! I was beginning to lose hope I'd never make it past all the Subs lurking out here." 27-EHY(c): "Hey, let me tag along and I can get us both out of this nasty situation. At least I think I can... The group I got separated from was talking about a shortcut back to the UFD." Acquired 8 matter. 27-EHY(c): "I think it's somewhere east of here" FY-0YI(O) collects matter. Acquired 5 matter. FY-0YI(O) collects matter. Acquired 2 matter. Acquired derelict log, extracted data. Data stored: Materials stockpile data. Map ----- +----------------------------------------------------+ | ?????????????????????????????????????????????????? | | ?????????????????????????????????????????????????? | | ?????????????????????????????????????????????????? | | ?????????????????????????????????????????????????? | | ?????????????????????????????????????????????????? | | ?????????????????????????????????????????????????? | | ?????????????????????????????????????????????????? | | ?????????????????????????????????????????????????? | | ??????###??????????????????????? ????????????????? | | ????### ####??????#####?###?? #????????????????? | | ????# #??????# ""#? ? #????????????????? | | ????# #??????# ## " #????????????????? | | ##??# ##?????# """ #????????????????? | | ##??# ##???## """"" #????????????????? | | #???? ##??# """ R ?????????????????? | | ####### ##?# ??????????????????? | | ## ### #; R ;#??????????????????? | | ?# #;; ;#??????????????????? | | ?## #; "#??????????????????? | | ?## ;"#?????? ??????????? | | ?## R " #???? ??????????? | | #?## ### ;""#?? ?????????? | | ### ##?# #??? ????????? | | ## ### #??## ## ????????? | | #?## #???## #?????????????? | | ###??## #???## @ #???????????????? | | #?????# #????### ####???????????????? | | ##?????# #??????## ##??????????????????? | | ##??????# ???????# ##???????????????????? | | ##???????? ??????# #????????????????????? | | ##????????? ?????# ????????????????????? | | ##??####???? ???? ???????????????????? | | ##?# ##??? ??? ???????????????????? | | ## #???# ??? ??????????????????? | | #???? ???? ?????????????????? | | #???? ???????? ## #?????????????????? | | #?????????????# ##? #?????????????????? | | ##?????????????#??? ?????????????????? | | ##????????????????? ?????????????????? | | # #????????????????????????????????????? | | ## #????????????????????????????????????? | | ?## #????????????????????????????????????? | | ??# #????????????????????????????????? | | ??# ## ##????????????????????????????????? | | ??# ### #?????????????????????????????????? | | ??# #?########?????????????????????????????????? | | ??# #??????????????????????????????????????????? | | ??# #??????????????????????????????????????????? | | ??# ##?????????????????????????????????????????? | | ??# ##????????????????????????????????????????? | +----------------------------------------------------+ Best States ------------- Heat Dissipation 25 Energy Generation 10 Energy Capacity 125 Matter Stores 300 Matter Capacity 300 Sight Range 16 Terrain Scan Density 10 Evasion (%) 50 Recoil Reduction 2 Item Schematics ----------------- None Robot Schematics ------------------ None Fabricated ------------ Nothing Repaired ---------- Nothing Alien Tech Used ----------------- None Achievements -------------- Dynamic Key Challenges ------------ None Game ------ Seed MachineGaussAutobeam Manual? 0 Play Time 00:11:46 Cumulative 10.8 hours Start 2025.07.08 @ 21:11:06 End 2025.07.08 @ 21:23:42 Sessions 1 Manual Loads 0 Difficulty Rogue Special Mode None Game No. 9 Rogue 9 Adventurer 0 Explorer 0 Win Type - Total 0 Types 0/0/0/0/0/0/0/0/0/0 Lore% 6 Gallery% 12 Achievement% 15 Wizard Run 0 Options --------- Layout 1 ASCII 0 Keyboard 0 Movement Mouse Keybinds 0 Fullscreen 1 Font 24/Smallcaps Map View 50x35 Zoom Use 0% Tactical HUD 0 Map Filters NONE Filters NONE Steam 1 RUN: 6447aa26-21dc-42d3-8e29-129a65c53246